bitfinex-derivatives/quotes_BTCF0:USTF0_20241210
["timestamp","ask_amount","ask_price","bid_price","bid_amount"]
[1733865833532,0.02378355,96474.0,96473.0,0.1119984]
[1733865833745,0.02378355,96474.0,96473.0,0.29678438]
[1733865834232,0.02378355,96474.0,96473.0,0.30078438]
[1733865834441,0.02378355,96474.0,96473.0,0.24093698]
[1733865834631,0.02378355,96474.0,96473.0,0.11601308]
[1733865835030,0.02878355,96474.0,96473.0,0.055793]
[1733865835233,0.02878355,96474.0,96473.0,0.30114164]
[1733865835433,0.01021231,96502.0,96485.0,0.051787]
[1733865835634,0.05333175,96505.0,96504.0,0.051777]
[1733865835838,0.051778,96502.0,96501.0,0.3608]
[1733865836044,0.051778,96502.0,96501.0,0.412578]
[1733865838341,0.004,96502.0,96501.0,0.412578]
[1733865838546,0.008,96502.0,96501.0,0.412578]
[1733865839545,0.004,96502.0,96501.0,0.412578]
[1733865839741,0.006,96502.0,96501.0,0.412578]
[1733865840149,0.004,96502.0,96501.0,0.412578]
[1733865840533,0.18538964,96543.0,96501.0,0.412578]
[1733865840534,0.051767,96522.0,96504.0,0.051777]
[1733865840749,0.051769,96518.0,96517.0,0.051769]
[1733865841446,0.051767,96523.0,96520.0,0.051768]
[1733865842049,0.051768,96521.0,96520.0,0.051768]
[1733865842446,0.3608,96525.0,96517.0,0.001]
[1733865842948,0.051769,96518.0,96517.0,0.001]
[1733865843149,0.051769,96518.0,96517.0,0.05277]
[1733865843946,0.051769,96518.0,96517.0,0.05177]
[1733865844146,0.051769,96518.0,96517.0,0.05277]
[1733865844549,0.051769,96518.0,96517.0,0.002]
[1733865845441,0.051769,96518.0,96501.0,0.3608]
[1733865845442,0.051778,96502.0,96501.0,0.3608]
[1733865846852,0.051778,96502.0,96501.0,0.412578]
[1733865847848,0.06199265,96507.0,96506.0,0.051776]
[1733865848780,0.051775,96507.0,96506.0,0.051776]
[1733865849351,0.051778,96503.0,96502.0,0.051778]
[1733865850951,0.15550106,96512.0,96501.0,0.3608]
[1733865850952,0.051778,96502.0,96501.0,0.3608]
[1733865851152,0.051778,96502.0,96491.0,0.37130538]
[1733865851355,0.051778,96502.0,96491.0,0.3608]
[1733865851356,0.051783,96492.0,96491.0,0.3608]
[1733865852349,0.412583,96492.0,96491.0,0.003]
[1733865853760,0.051784,96491.0,96490.0,0.051784]
[1733865853956,0.051787,96486.0,96485.0,0.051787]
[1733865855651,0.053787,96486.0,96485.0,0.051787]
[1733865856157,0.002,96486.0,96485.0,0.051787]
[1733865859962,0.54639805,96515.0,96485.0,0.051787]
[1733865860162,0.122277,96505.0,96504.0,0.051777]
[1733865860353,0.36136001,96515.0,96505.0,0.051776]
[1733865860354,0.05332893,96510.0,96505.0,0.051776]
[1733865860563,0.051774,96509.0,96505.0,0.051776]
[1733865860763,0.051774,96509.0,96497.0,0.3608]
[1733865860764,0.051774,96509.0,96508.0,0.051775]
[1733865861861,0.012,96509.0,96508.0,0.032775]
[1733865863058,0.012,96509.0,96508.0,0.0434043]
[1733865863278,0.00155493,96510.0,96509.0,0.051774]
[1733865863767,0.051768,96521.0,96520.0,0.051768]
[1733865864358,0.05177,96518.0,96508.0,0.0116293]
[1733865864669,0.05177,96518.0,96516.0,0.05177]
[1733865864960,0.10287561,96530.0,96516.0,0.05177]
[1733865865162,0.10287561,96530.0,96509.0,0.001]
[1733865865163,0.051774,96510.0,96509.0,0.001]
[1733865865370,0.051774,96510.0,96509.0,0.052774]
[1733865866660,0.051774,96510.0,96509.0,0.001]
[1733865866868,0.051774,96510.0,96500.0,0.00155434]
[1733865866869,0.412574,96510.0,96500.0,0.00155434]
[1733865867162,0.412579,96501.0,96500.0,0.00155434]
[1733865867367,0.412579,96501.0,96485.0,0.18482609]
[1733865867665,0.412579,96501.0,96479.0,0.01047696]
[1733865867666,0.051789,96482.0,96481.0,0.051789]
[1733865868565,0.05179,96481.0,96480.0,0.05179]
[1733865868767,0.3608,96492.0,96479.0,0.37187696]
[1733865868768,0.051787,96486.0,96485.0,0.051787]
[1733865870472,0.051787,96486.0,96485.0,0.053787]
[1733865870774,0.051787,96486.0,96485.0,0.002]
[1733865871163,0.051787,96486.0,96485.0,0.004]
[1733865871765,0.051787,96486.0,96485.0,0.003]
[1733865872460,0.051787,96486.0,96485.0,0.001]
[1733865872661,0.051787,96486.0,96485.0,0.002]
[1733865872966,0.3608,96492.0,96485.0,0.002]
[1733865873270,0.3608,96492.0,96485.0,0.052787]
[1733865873474,0.3608,96492.0,96485.0,0.054787]
[1733865873659,0.051786,96488.0,96485.0,0.004]
[1733865873865,0.3608,96492.0,96491.0,0.051784]
[1733865874465,0.15263283,96500.0,96487.0,0.3608]
[1733865874663,0.05178,96499.0,96498.0,0.05178]
[1733865874859,0.00155494,96502.0,96487.0,0.3608]
[1733865875058,0.00155494,96502.0,96493.0,0.051783]
[1733865875059,0.051782,96495.0,96493.0,0.051783]
[1733865875257,0.00155494,96502.0,96487.0,0.3608]
[1733865875466,0.00155494,96502.0,96486.0,0.18482609]
[1733865875467,0.3608,96491.0,96488.0,0.06021234]
[1733865875661,0.3608,96491.0,96485.0,0.002]
[1733865875662,0.051785,96489.0,96485.0,0.002]
[1733865875859,0.051783,96494.0,96492.0,0.051783]
[1733865876063,0.3608,96494.0,96492.0,0.051783]
[1733865876269,0.051783,96493.0,96492.0,0.051783]
[1733865877473,0.09290081,96498.0,96488.0,0.3608]
[1733865877774,0.051784,96493.0,96492.0,0.051783]
[1733865878573,0.14468081,96498.0,96497.0,0.051781]
[1733865878761,0.05178,96498.0,96497.0,0.051781]
[1733865879164,0.05333294,96502.0,96501.0,0.051779]
[1733865879364,0.00155494,96502.0,96501.0,0.051779]
[1733865880666,0.00155494,96502.0,96501.0,0.11200024]
[1733865881375,0.00155494,96502.0,96501.0,0.051779]
[1733865881871,0.051774,96511.0,96510.0,0.051774]
[1733865882074,0.14465747,96511.0,96510.0,0.051774]
[1733865882280,0.051774,96511.0,96510.0,0.051774]
[1733865882576,0.14465747,96511.0,96510.0,0.051774]
[1733865883167,0.14765747,96511.0,96510.0,0.051774]
[1733865883480,0.054774,96511.0,96510.0,0.051774]
[1733865883670,0.14765151,96511.0,96510.0,0.051774]
[1733865883870,0.054774,96511.0,96510.0,0.051774]
[1733865884376,0.054774,96511.0,96510.0,0.052774]
[1733865884578,0.003,96511.0,96510.0,0.052774]
[1733865884971,0.119667,96524.0,96523.0,0.051767]
[1733865885167,0.0679,96524.0,96523.0,0.051767]
[1733865885370,0.051764,96529.0,96527.0,0.051764]
[1733865885574,0.0746,96537.0,96520.0,0.3608]
[1733865885575,0.09287751,96533.0,96520.0,0.3608]
[1733865885774,0.051764,96530.0,96520.0,0.3608]
[1733865886079,0.09287751,96536.0,96528.0,0.3608]
[1733865886271,0.051761,96534.0,96533.0,0.051761]
[1733865886870,0.0677,96537.0,96536.0,0.05176]
[1733865888676,0.00155435,96538.0,96537.0,0.051759]
[1733865888873,0.051752,96551.0,96537.0,0.412559]
[1733865889081,0.051752,96551.0,96540.0,0.10287561]
[1733865889287,0.051752,96551.0,96550.0,0.051752]
[1733865889574,0.07,96553.0,96552.0,0.051751]
[1733865891286,0.121751,96553.0,96552.0,0.052751]
[1733865891983,0.122751,96553.0,96552.0,0.052751]
[1733865892871,0.122751,96553.0,96552.0,0.001]
[1733865894774,0.122751,96553.0,96552.0,0.052751]
[1733865895184,0.122751,96553.0,96552.0,0.001]
[1733865900794,0.122751,96553.0,96552.0,0.052751]
[1733865900795,0.052751,96553.0,96552.0,0.052751]
[1733865901083,0.052751,96553.0,96552.0,0.06310287]
[1733865901282,0.052751,96553.0,96552.0,0.052751]
[1733865901783,0.052751,96553.0,96552.0,0.001]
[1733865906586,0.15583032,96553.0,96552.0,0.001]
[1733865906791,0.15583032,96553.0,96534.0,0.051761]
[1733865906792,0.051761,96535.0,96534.0,0.051761]
[1733865907089,0.051761,96535.0,96520.0,0.15464361]
[1733865907090,0.051765,96530.0,96529.0,0.051763]
[1733865907478,0.051763,96531.0,96527.0,0.051765]
[1733865907679,0.051763,96531.0,96530.0,0.051763]
[1733865908679,0.052763,96531.0,96530.0,0.051763]
[1733865910384,0.053763,96531.0,96530.0,0.051763]
[1733865913889,0.09295455,96536.0,96535.0,0.051761]
[1733865914191,0.09295429,96547.0,96537.0,0.051759]
[1733865914389,0.09295429,96551.0,96546.0,0.3608]
[1733865914585,0.09295429,96551.0,96550.0,0.051752]
[1733865915292,0.0743,96562.0,96553.0,0.051751]
[1733865915293,0.09300562,96554.0,96553.0,0.051751]
[1733865915491,0.14473941,96555.0,96554.0,0.05175]
[1733865915691,0.14473941,96555.0,96554.0,0.41255]
[1733865915990,0.05175,96555.0,96554.0,0.41255]
[1733865916286,0.12333248,96560.0,96555.0,0.05175]
[1733865916287,0.17507948,96560.0,96555.0,0.05175]
[1733865916492,0.09299551,96561.0,96560.0,0.051747]
[1733865916682,0.36287395,96573.0,96555.0,0.18492738]
[1733865916683,0.09299551,96566.0,96559.0,0.18492738]
[1733865916995,0.18559805,96581.0,96559.0,0.18492738]
[1733865916996,0.051733,96587.0,96565.0,0.3608]
[1733865917182,0.051733,96587.0,96586.0,0.051733]
[1733865917588,0.01027653,96590.0,96579.0,0.3608]
[1733865917792,0.051737,96580.0,96577.0,0.051738]
[1733865917989,0.051741,96573.0,96572.0,0.051741]
[1733865919390,0.051741,96573.0,96565.0,0.3608]
[1733865919596,0.051741,96573.0,96565.0,0.37123129]
[1733865919893,0.051742,96570.0,96569.0,0.051742]
[1733865920094,0.051744,96566.0,96565.0,0.37123129]
[1733865920397,0.48413248,96581.0,96568.0,0.051743]
[1733865920583,0.051742,96569.0,96568.0,0.051743]
[1733865920781,0.051744,96566.0,96565.0,0.37123129]
[1733865920982,0.051744,96566.0,96565.0,0.42297529]
[1733865921883,0.051744,96566.0,96557.0,0.00155336]
[1733865922086,0.051744,96566.0,96554.0,0.3608]
[1733865922087,0.05175,96555.0,96554.0,0.3608]
[1733865922283,0.05175,96555.0,96538.0,0.30796875]
[1733865922284,0.051757,96542.0,96539.0,0.18478125]
[1733865922484,0.3608,96555.0,96539.0,0.18478125]
[1733865922485,0.051756,96544.0,96540.0,0.06011119]
[1733865922684,0.051752,96552.0,96542.0,0.051757]
[1733865922884,0.051756,96544.0,96543.0,0.051756]
[1733865923395,0.00155381,96562.0,96553.0,0.051751]
[1733865923694,0.05175,96554.0,96553.0,0.051751]
[1733865924293,0.00155381,96562.0,96540.0,0.46367561]
[1733865924498,0.00155381,96562.0,96543.0,0.009]
[1733865924683,0.05175,96554.0,96553.0,0.003]
[1733865925092,0.05175,96554.0,96553.0,0.007]
[1733865926488,0.05175,96554.0,96553.0,0.004]
[1733865926793,0.05175,96554.0,96551.0,0.051751]
[1733865926794,0.12333248,96564.0,96551.0,0.051752]
[1733865927190,0.051751,96552.0,96551.0,0.051752]
[1733865928000,0.051751,96552.0,96551.0,0.053752]
[1733865928187,0.051751,96552.0,96551.0,0.055752]
[1733865928690,0.051751,96552.0,96551.0,0.004]
[1733865929591,0.051751,96552.0,96551.0,0.002]
[1733865929795,0.051751,96552.0,96551.0,0.004]
[1733865929995,0.17508348,96552.0,96551.0,0.004]
[1733865930189,0.17508348,96552.0,96551.0,0.002]
[1733865930401,0.051751,96552.0,96551.0,0.002]
[1733865930593,0.051756,96543.0,96542.0,0.051756]
[1733865931702,0.3608,96555.0,96540.0,0.3608]
[1733865931890,0.412551,96555.0,96554.0,0.05175]
[1733865932087,0.051754,96549.0,96548.0,0.051752]
[1733865932297,0.051754,96549.0,96548.0,0.412552]
[1733865933691,0.051754,96549.0,96548.0,0.415552]
[1733865934207,0.051754,96549.0,96548.0,0.419552]
[1733865934597,0.051754,96549.0,96548.0,0.058752]
[1733865934795,0.051754,96549.0,96548.0,0.006]
[1733865936007,0.051754,96549.0,96548.0,0.005]
[1733865936408,0.051754,96549.0,96548.0,0.002]
[1733865936910,0.05176,96536.0,96535.0,0.05176]
[1733865937998,0.05176,96536.0,96535.0,0.05376]
[1733865938806,0.05176,96536.0,96535.0,0.002]
[1733865939002,0.05176,96536.0,96513.0,0.051772]
[1733865939003,0.051767,96524.0,96513.0,0.051772]
[1733865939201,0.051772,96514.0,96513.0,0.051772]
[1733865939503,0.051772,96514.0,96509.0,0.3608]
[1733865939704,0.412573,96512.0,96511.0,0.00142047]
[1733865941006,0.412573,96512.0,96511.0,0.00342047]
[1733865941910,0.4228847,96512.0,96511.0,0.00342047]
[1733865943006,0.051773,96512.0,96511.0,0.36422047]
[1733865943208,0.1427,96523.0,96511.0,0.36422047]
[1733865943403,0.0693,96523.0,96512.0,0.3608]
[1733865943609,0.051769,96520.0,96519.0,0.051768]
[1733865944401,0.3608,96526.0,96517.0,0.00142047]
[1733865944602,0.3608,96526.0,96525.0,0.051766]
[1733865945513,0.4347,96538.0,96525.0,0.3608]
[1733865945702,0.3608,96538.0,96537.0,0.051759]
[1733865946222,0.051758,96540.0,96538.0,0.051759]
[1733865946507,0.051755,96545.0,96538.0,0.051759]
[1733865946708,0.051752,96551.0,96550.0,0.051752]
[1733865946908,0.051743,96569.0,96545.0,0.3608]
[1733865946909,0.0717,96562.0,96545.0,0.3608]
[1733865947215,0.0717,96562.0,96561.0,0.051747]
[1733865947416,0.0717,96562.0,96555.0,0.3608]
[1733865947417,0.051746,96563.0,96562.0,0.051746]
[1733865947611,0.0735,96583.0,96555.0,0.3608]
[1733865947612,0.4325,96573.0,96555.0,0.3608]
[1733865947816,0.051744,96567.0,96566.0,0.051743]
[1733865948519,0.3608,96581.0,96566.0,0.3608]
[1733865948815,0.051736,96582.0,96571.0,0.051741]
[1733865949000,0.0731,96589.0,96572.0,0.051741]
[1733865949201,0.0731,96589.0,96575.0,0.3608]
[1733865949401,0.051733,96587.0,96584.0,0.051734]
[1733865949602,0.051733,96587.0,96585.0,0.051734]
[1733865949812,0.051733,96587.0,96586.0,0.00142047]
[1733865950711,0.001,96589.0,96587.0,0.051733]
[1733865951011,0.05173,96593.0,96592.0,0.05173]
[1733865951511,0.47151496,96600.0,96592.0,0.05173]
[1733865951512,0.52324096,96600.0,96598.0,0.051727]
[1733865951704,0.47151496,96600.0,96598.0,0.051727]
[1733865951912,0.1,96600.0,96598.0,0.051727]
[1733865952408,0.05,96600.0,96598.0,0.051727]
[1733865952911,0.051714,96621.0,96607.0,0.051722]
[1733865953110,0.051714,96621.0,96608.0,0.3608]
[1733865953409,0.051719,96612.0,96608.0,0.3608]
[1733865953610,0.051716,96618.0,96608.0,0.3608]
[1733865954408,0.051716,96618.0,96610.0,0.05172]
[1733865954911,0.3608,96624.0,96610.0,0.05172]
[1733865954912,0.051717,96617.0,96610.0,0.05172]
[1733865955214,0.3608,96616.0,96608.0,0.3608]
[1733865955518,0.05172,96611.0,96608.0,0.3608]
[1733865955812,0.05172,96611.0,96608.0,0.3618]
[1733865956111,0.05172,96611.0,96608.0,0.3608]
[1733865956415,0.05172,96611.0,96610.0,0.001]
[1733865956803,0.05172,96611.0,96608.0,0.3618]
[1733865957202,0.05172,96611.0,96608.0,0.001]
[1733865958814,0.051721,96609.0,96608.0,0.001]
[1733865959808,0.051721,96609.0,96607.0,0.051722]
[1733865960005,0.051721,96609.0,96603.0,0.3608]
[1733865960006,0.3608,96616.0,96608.0,0.001]
[1733865960222,0.3608,96616.0,96614.0,0.051718]
[1733865960612,0.3608,96616.0,96608.0,0.001]
[1733865960808,0.051721,96610.0,96608.0,0.001]
[1733865961013,0.051721,96610.0,96607.0,0.052722]
[1733865961215,0.412517,96616.0,96607.0,0.001]
[1733865961415,0.412517,96616.0,96612.0,0.051719]
[1733865961610,0.051718,96615.0,96612.0,0.051719]
[1733865961820,0.051718,96615.0,96607.0,0.001]
[1733865962116,0.051718,96615.0,96613.0,0.051719]
[1733865962316,0.4349,96623.0,96607.0,0.001]
[1733865962317,0.05172,96612.0,96607.0,0.001]
[1733865962615,0.05172,96612.0,96603.0,0.3608]
[1733865962616,0.05172,96612.0,96610.0,0.05172]
[1733865963123,0.051723,96605.0,96604.0,0.051723]
[1733865963820,0.4349,96623.0,96610.0,0.001]
[1733865963821,0.05172,96611.0,96610.0,0.001]
[1733865964221,0.05172,96611.0,96603.0,0.3608]
[1733865964419,0.051722,96607.0,96604.0,0.001]
[1733865964723,0.051714,96622.0,96613.0,0.051719]
[1733865964920,0.00052001,96623.0,96622.0,0.051714]
[1733865965228,0.00155283,96633.0,96631.0,0.051709]
[1733865965229,0.05326083,96633.0,96631.0,0.051709]
[1733865965414,0.00155283,96633.0,96632.0,0.412509]
[1733865965820,0.3608,96647.0,96632.0,0.412509]
[1733865965821,0.3608,96647.0,96646.0,0.051701]
[1733865966023,0.051692,96663.0,96646.0,0.051701]
[1733865966213,0.3608,96669.0,96663.0,0.051692]
[1733865966214,0.05169,96667.0,96663.0,0.051692]
[1733865966414,0.3608,96669.0,96660.0,0.051694]
[1733865966415,0.051694,96661.0,96660.0,0.051694]
[1733865966618,0.051696,96656.0,96646.0,0.051701]
[1733865966829,0.051696,96656.0,96644.0,0.3608]
[1733865966830,0.3608,96659.0,96644.0,0.412502]
[1733865967027,0.3608,96659.0,96641.0,9.054e-05]
[1733865967028,0.3608,96648.0,96641.0,9.054e-05]
[1733865967323,0.0714,96647.0,96641.0,9.054e-05]
[1733865967526,0.051703,96642.0,96634.0,0.01043074]
[1733865967824,0.3608,96635.0,96626.0,0.05326439]
[1733865968024,0.051711,96628.0,96627.0,0.051711]
[1733865968223,0.051711,96628.0,96626.0,0.00155239]
[1733865968224,0.051711,96627.0,96626.0,0.00155239]
[1733865968620,0.05180154,96627.0,96626.0,0.00155239]
[1733865968926,0.05180154,96627.0,96626.0,0.00355239]
[1733865969826,0.05180154,96627.0,96626.0,0.00255239]
[1733865970224,9.054e-05,96627.0,96626.0,0.05426439]
[1733865971129,9.054e-05,96627.0,96626.0,0.05326439]
[1733865971328,9.054e-05,96627.0,96626.0,0.0635646]
[1733865971630,0.00155261,96648.0,96636.0,0.051706]
[1733865971934,0.00155261,96648.0,96647.0,0.051701]
[1733865972821,0.05325261,96648.0,96647.0,0.051701]
[1733865973022,0.00155261,96648.0,96647.0,0.051701]
[1733865973830,0.051693,96661.0,96660.0,0.051694]
[1733865974027,0.12346658,96680.0,96670.0,0.051688]
[1733865974224,0.3608,96682.0,96660.0,0.15419645]
[1733865974225,0.0719,96681.0,96660.0,0.15419645]
[1733865974429,0.051685,96677.0,96668.0,0.3608]
[1733865974825,0.051685,96677.0,96676.0,0.051685]
[1733865975526,0.051688,96671.0,96670.0,0.001]
[1733865975726,0.412488,96671.0,96670.0,0.001]
[1733865975933,0.051689,96669.0,96668.0,0.001]
[1733865976331,0.051689,96669.0,96657.0,0.3608]
[1733865976533,0.051695,96658.0,96657.0,0.412495]
[1733865978731,0.051695,96658.0,96657.0,0.3608]
[1733865979432,0.051695,96658.0,96647.0,0.3608]
[1733865979433,0.051695,96657.0,96647.0,0.3608]
[1733865979626,0.0517,96651.0,96650.0,0.051699]
[1733865979935,0.12346658,96668.0,96648.0,0.0517]
[1733865980129,0.051689,96669.0,96656.0,0.3608]
[1733865980330,0.051689,96669.0,96668.0,0.051688]
[1733865981942,0.051695,96657.0,96656.0,0.051695]
[1733865982232,0.0517,96651.0,96650.0,0.051699]
[1733865983632,0.1425,96656.0,96643.0,0.01025449]
[1733865983633,0.0517,96648.0,96647.0,0.4125]
[1733865985433,0.3608,96655.0,96637.0,0.3608]
[1733865985632,0.051704,96643.0,96642.0,0.051702]
[1733865986933,0.051701,96648.0,96647.0,0.051699]
[1733865987130,0.3608,96655.0,96654.0,0.051697]
[1733865987333,0.21606653,96680.0,96648.0,0.0517]
[1733865987334,0.12346658,96668.0,96648.0,0.0517]
[1733865987535,0.54599988,96673.0,96664.0,0.05169]
[1733865987536,0.051691,96665.0,96664.0,0.05169]
[1733865988133,0.051691,96665.0,96657.0,0.3608]
[1733865988134,0.12346658,96670.0,96661.0,0.051693]
[1733865988331,0.12346658,96670.0,96657.0,0.3608]
[1733865988535,0.051695,96658.0,96657.0,0.412495]
[1733865990234,0.12346658,96667.0,96657.0,0.3608]
[1733865990442,0.12346658,96669.0,96668.0,0.051689]
[1733865990632,0.051688,96671.0,96669.0,0.051689]
[1733865990633,0.12346658,96670.0,96669.0,0.051689]
[1733865990933,0.051688,96671.0,96657.0,0.3608]
[1733865990934,0.0713,96675.0,96674.0,0.051686]
[1733865991443,0.122986,96675.0,96674.0,0.051686]
[1733865992144,0.122986,96675.0,96674.0,0.052686]
[1733865992341,0.12501877,96677.0,96676.0,0.051685]
[1733865992542,0.00155219,96677.0,96676.0,0.051685]
[1733865992735,0.05323619,96677.0,96676.0,0.051685]
[1733865994141,0.051684,96677.0,96676.0,0.051685]
[1733865994643,0.051684,96677.0,96676.0,0.052685]
[1733865995234,0.17515058,96677.0,96676.0,0.052685]
[1733865995441,0.051684,96677.0,96676.0,0.052685]
[1733865996736,0.12346658,96681.0,96676.0,0.001]
[1733865996935,0.12346658,96683.0,96682.0,0.051682]
[1733865997336,0.12346658,96683.0,96676.0,0.001]
[1733865997337,0.051681,96684.0,96683.0,0.051681]
[1733865997543,0.051681,96684.0,96683.0,0.412481]
[1733865997738,0.12348206,96684.0,96683.0,0.412481]
[1733865997944,0.12348206,96687.0,96686.0,0.05168]
[1733865998143,0.12348206,96688.0,96683.0,0.3608]
[1733865998442,0.051678,96690.0,96689.0,0.051678]
[1733866000139,0.12348206,96693.0,96692.0,0.051676]
[1733866000344,0.12348206,96698.0,96689.0,0.3608]
[1733866000545,0.051673,96699.0,96697.0,0.3608]
[1733866000751,0.051673,96699.0,96697.0,0.412474]
[1733866000949,0.051673,96699.0,96698.0,0.051673]
[1733866001140,0.1,96700.0,96699.0,0.051673]
[1733866001742,0.05,96700.0,96699.0,0.051673]
[1733866001937,0.12348206,96709.0,96706.0,0.051669]
[1733866002142,0.12348206,96709.0,96699.0,0.10266215]
[1733866002345,0.00155154,96710.0,96699.0,0.10266215]
[1733866002542,0.05167,96705.0,96704.0,0.05167]
[1733866002742,0.051672,96700.0,96699.0,0.051672]
[1733866003040,0.3608,96705.0,96690.0,0.3608]
[1733866003345,0.051677,96691.0,96690.0,0.3608]
[1733866003547,0.00602706,96702.0,96690.0,0.712477]
[1733866003749,0.3608,96736.0,96709.0,0.051667]
[1733866003750,0.051657,96729.0,96709.0,0.051667]
[1733866003945,0.1542688,96726.0,96723.0,0.3608]
[1733866004143,0.435,96736.0,96723.0,0.19537394]
[1733866004144,0.1542688,96727.0,96723.0,0.19537394]
[1733866004339,0.051658,96728.0,96725.0,0.051659]
[1733866004542,0.051658,96727.0,96725.0,0.051659]
[1733866005451,0.051658,96727.0,96726.0,0.051658]
[1733866007555,0.051658,96726.0,96725.0,0.001]
[1733866007943,0.05166,96722.0,96721.0,0.051661]
[1733866008144,0.3608,96727.0,96697.0,0.18431803]
[1733866008145,0.05166,96723.0,96697.0,0.18431803]
[1733866008339,0.05166,96723.0,96691.0,0.29742083]
[1733866008340,0.051672,96704.0,96703.0,0.05167]
[1733866009545,0.051668,96708.0,96707.0,0.051667]
[1733866009747,0.051657,96729.0,96707.0,0.051667]
[1733866009748,0.051661,96724.0,96723.0,0.051658]
[1733866009949,0.412461,96724.0,96723.0,0.051658]
[1733866010147,0.051661,96724.0,96723.0,0.051658]
[1733866010347,0.05320825,96728.0,96727.0,0.051658]
[1733866010547,0.00155125,96728.0,96721.0,0.001]
[1733866010753,0.05166,96723.0,96722.0,0.05166]
[1733866012043,0.05166,96723.0,96722.0,0.05266]
[1733866013360,0.05166,96723.0,96722.0,0.001]
[1733866019163,0.41246,96723.0,96722.0,0.001]
[1733866022268,0.3608,96723.0,96722.0,0.05266]
[1733866022654,0.00155125,96728.0,96727.0,0.051658]
[1733866022861,0.0676,96740.0,96722.0,0.3626]
[1733866023161,0.479854,96734.0,96733.0,0.051655]
[1733866023963,0.4282,96734.0,96733.0,0.051655]
[1733866024560,0.4282,96734.0,96733.0,0.052655]
[1733866025565,0.46335115,96750.0,96733.0,0.001]
[1733866025566,0.3608,96750.0,96733.0,0.001]
[1733866025773,0.0742,96751.0,96740.0,0.10255115]
[1733866025972,0.0742,96751.0,96750.0,0.051645]
[1733866027568,0.0742,96751.0,96750.0,0.052645]
[1733866028378,0.125845,96751.0,96750.0,0.001]
[1733866029568,0.3608,96755.0,96753.0,0.051643]
[1733866029870,0.412443,96755.0,96753.0,0.051643]
[1733866030673,0.412443,96755.0,96753.0,0.052643]
[1733866031768,0.412443,96755.0,96753.0,0.001]
[1733866033280,0.3608,96755.0,96753.0,0.052644]
[1733866033876,0.3108,96755.0,96753.0,0.052644]
[1733866034076,0.2608,96755.0,96753.0,0.052644]
[1733866034271,0.00155121,96759.0,96758.0,0.051641]
[1733866035573,0.051632,96776.0,96753.0,0.052644]
[1733866035770,0.0691,96779.0,96770.0,0.051635]
[1733866035771,0.051632,96775.0,96770.0,0.051635]
[1733866036683,0.0691,96779.0,96769.0,0.3608]
[1733866036684,0.0691,96779.0,96777.0,0.051631]
[1733866037483,0.0691,96779.0,96778.0,0.3608]
[1733866037776,0.3608,96787.0,96785.0,0.051627]
[1733866037969,0.412426,96787.0,96785.0,0.051627]
[1733866038671,0.051626,96786.0,96785.0,0.051627]
[1733866039070,0.051624,96791.0,96788.0,0.051625]
[1733866039269,0.0692,96793.0,96786.0,0.3608]
[1733866039575,0.051622,96795.0,96794.0,0.051622]
[1733866039773,0.051624,96791.0,96789.0,0.051625]
[1733866040073,0.3608,96796.0,96786.0,0.3608]
[1733866040275,0.3608,96796.0,96788.0,0.051625]
[1733866040276,0.051623,96792.0,96788.0,0.051625]
[1733866040577,0.051625,96788.0,96787.0,0.051626]
[1733866040777,0.051626,96787.0,96775.0,0.051632]
[1733866040980,0.051626,96787.0,96766.0,0.3608]
[1733866040981,0.051626,96787.0,96772.0,0.051633]
[1733866041181,0.051626,96787.0,96770.0,0.17515115]
[1733866041182,0.3608,96788.0,96770.0,0.10255115]
[1733866041376,0.051631,96778.0,96777.0,0.10255115]
[1733866041572,0.051631,96778.0,96766.0,0.3608]
[1733866041573,0.051626,96787.0,96770.0,0.10255115]
[1733866041777,0.051633,96773.0,96770.0,0.15418615]
[1733866041977,0.051633,96773.0,96766.0,0.37132099]
[1733866041978,0.051633,96773.0,96772.0,0.009]
[1733866042178,0.051628,96784.0,96779.0,0.051629]
[1733866042380,0.119621,96795.0,96784.0,0.051627]
[1733866042381,0.0713,96785.0,96784.0,0.051627]
[1733866042684,0.051632,96776.0,96775.0,0.3608]
[1733866044376,0.051632,96776.0,96775.0,0.3618]
[1733866044886,0.051632,96776.0,96775.0,0.3608]
[1733866045181,0.051632,96776.0,96775.0,0.3628]
[1733866045487,0.412432,96776.0,96775.0,0.002]
[1733866045787,0.412432,96776.0,96775.0,0.003]
[1733866046481,0.412432,96776.0,96750.0,0.48435577]
[1733866046679,0.051637,96766.0,96759.0,0.05164]
[1733866046873,0.051637,96766.0,96750.0,0.48435577]
[1733866047180,0.051637,96766.0,96763.0,0.0106061]
[1733866047778,0.051637,96766.0,96765.0,0.00255012]
[1733866048282,0.051637,96766.0,96765.0,0.05318712]
[1733866049278,0.051637,96766.0,96765.0,0.00155012]
[1733866049677,0.051637,96766.0,96765.0,0.00255012]
[1733866049880,0.051637,96766.0,96750.0,0.38180462]
[1733866049881,0.051637,96766.0,96750.0,0.3608]
[1733866050083,0.0923657,96762.0,96758.0,0.051641]
[1733866050485,0.0714,96773.0,96772.0,0.051634]
[1733866050789,0.0718,96774.0,96773.0,0.051633]
[1733866050790,0.123434,96774.0,96773.0,0.051633]
[1733866051593,0.123434,96774.0,96773.0,0.412433]
[1733866052095,0.051629,96780.0,96778.0,0.05163]
[1733866052291,0.05163,96779.0,96778.0,0.05163]
[1733866052691,0.0923657,96781.0,96773.0,0.051633]
[1733866052890,0.051633,96774.0,96773.0,0.001]
[1733866053188,0.14416582,96774.0,96773.0,0.002]
[1733866053397,0.051633,96774.0,96773.0,0.002]
[1733866053693,0.051633,96774.0,96773.0,0.001]